Cogmind - Beta 14 @@@ ROGUE MODE // 2024.11.25 @ 20:13:30 Player: Vineheart01 Result: Destroyed by Y-54 Guardian with Gatling Laser Performance ------------- Evolutions (4) 2000 Regions Visited (6) 1200 Robots Destroyed (111) 555 Value Destroyed (3211) 3211 Prototype IDs (2) 40 Alien Tech Used (0) 0 Bonus (0) 0 TOTAL SCORE: 7006 Bonus ------- None Cogmind --------- Core Integrity 0/850 Matter 300/300 Energy 99/100 System Corruption 0% Temperature Cool (12) Movement Core (1350) Ox26 Location -6/Extension Parts ------- > --- POWER (2) -------- (None) > --- PROPULSION (4) --- (None) > --- UTILITY (6) ------ Huge Storage Unit Advanced Melee Analysis Suite Authchip [R/Combat] > --- WEAPON (3) ------- (None) > --- INVENTORY (25) --- Light Deuterium Engine Light Deuterium Engine Carbon-fiber Leg Carbon-fiber Leg Flexi-carbon Leg Advanced Weight Redist. System Advanced Terrain Scan Processor Launcher Guidance Computer Launcher Guidance Computer Launcher Guidance Computer Launcher Guidance Computer Advanced ECM Suite Improved Light Armor Plating Authchip [R/Combat] Authchip [Power] Authchip [Device] Authchip [Storage] Peak State ------------ > --- POWER ------------ Improved Deuterium Engine Improved Deuterium Engine > --- PROPULSION ------- Medium Treads Medium Treads Medium Treads Medium Treads > --- UTILITY ---------- Huge Storage Unit Advanced Melee Analysis Suite Improved Light Armor Plating Focal Shield Hacking Suite Authchip [R/Combat] > --- WEAPON ----------- Plasma Cannon Improved Datajack Chainsword > --- INVENTORY -------- Light Deuterium Engine Light Deuterium Engine Carbon-fiber Leg Carbon-fiber Leg Flexi-carbon Leg Advanced Weight Redist. System Advanced Terrain Scan Processor Launcher Guidance Computer Launcher Guidance Computer Launcher Guidance Computer Launcher Guidance Computer Advanced ECM Suite Improved Light Armor Plating Authchip [R/Combat] Authchip [Power] Authchip [Device] Authchip [Storage] Assault Cannon [Rating: 62] Favorites ----------- Power Improved Deuterium Engine Engine Improved Deuterium Engine Power Core Nuclear Core Propulsion Medium Treads Treads Medium Treads Leg Aluminum Leg Wheel Compact Wheel Flight Unit Xenon Bombardment Thruster Utility Large Storage Unit Device Cooling System Storage Large Storage Unit Processor Advanced Melee Analysis Suite Hackware Hacking Suite Protection Improved Light Armor Plating Weapon Advanced Beam Cannon Energy Gun Heavy Laser Energy Cannon Advanced Beam Cannon Ballistic Gun Heavy Assault Rifle Ballistic Cannon Assault Cannon Special Weapon Remote Datajack Impact Weapon Heavy Mace Slashing Weapon Chainsword Special Melee Weapon Improved Datajack Build | -11 -10 -9 -8 -7 -6 -6 ------- Run | Yrd Mat Mat Mat Fac Fac Ext Slots Evolved 8 | . . 2 2 2 2 . Power 1 | . . . 1 . . . Propulsion 2 | . . 1 . . 1 . Utility 4 | . . 1 1 1 1 . Weapon 1 | . . . . 1 . . Parts Attached 180 | 7 20 20 23 74 34 2 Power 20 | 1 4 . 5 5 5 . Engine 15 | 1 4 . 2 3 5 . Core 5 | . . . 3 2 . . Reactor . | . . . . . . . Propulsion 47 | 2 3 3 7 20 12 . Treads 14 | . . 3 . 3 8 . Leg 15 | 2 3 . 7 3 . . Wheel 9 | . . . . 9 . . Hover . | . . . . . . . Flight 9 | . . . . 5 4 . Utility 54 | 2 3 7 7 21 13 1 Device 31 | 1 . 4 6 13 6 1 Storage 6 | 1 2 1 . . 2 . Processor 6 | . . . 1 4 1 . Hackware 2 | . . . . . 2 . Protection 9 | . 1 2 . 4 2 . Artifact . | . . . . . . . Weapon 59 | 2 10 10 4 28 4 1 Energy Gun 10 | 1 1 . 1 6 1 . Energy Cannon 26 | . 8 6 2 9 1 . Ballistic Gun 7 | 1 1 3 . 2 . . Ballistic Cannon 7 | . . . . 6 . 1 Launcher . | . . . . . . . Special Weapon 1 | . . . . 1 . . Impact Weapon 3 | . . 1 . 2 . . Slashing Weapon 1 | . . . . . 1 . Piercing Weapon . | . . . . . . . Special Melee Weapon 4 | . . . 1 2 1 . Unidentified Prototypes 1 | . 1 . . . . . Corrupted Parts 1 | . . . . 1 . . System Corruption 4 | . . . . 4 . . Parts Lost 46 | . 1 1 2 26 3 13 Power 7 | . . . . 4 1 2 Propulsion 16 | . 1 . . 11 . 4 Utility 11 | . . 1 . 6 1 3 Weapon 12 | . . . 2 5 1 4 Highest Loss Streak 13 | . 1 1 1 13 2 13 To Critical Strikes 1 | . 1 . . . . . Average Slot Usage (%) 92 | . 82 98 98 90 96 92 Engine 9 | . 13 11 . 9 12 10 Core 2 | . . . 17 2 . . Treads 12 | . . 31 12 6 23 23 Leg 6 | . 16 . 13 3 . . Wheel 2 | . . . . 7 . . Device 13 | . 6 14 21 15 10 5 Storage 9 | . 20 11 9 7 5 6 Processor 5 | . . . 3 7 8 6 Hackware 1 | . . . . . 6 12 Protection 3 | . . 6 1 4 5 5 Energy Gun 4 | . 3 2 2 7 4 . Energy Cannon 9 | . 19 16 15 4 . 5 Ballistic Cannon 2 | . . . . 7 1 . Slashing Weapon 1 | . . . . . 5 5 Special Melee Weapon 1 | . . . . . 4 5 Peak Build Rating 62 | 9 14 21 33 40 61 62 Average Rating 30 | 5 9 18 29 32 51 57 On Entrance 24 | . 9 8 21 32 39 61 Naked Turns . | . . . . . . . Heaviest Build 117 | 12 36 38 51 59 117 117 Greatest Support 112 | 20 20 69 69 51 112 112 Greatest Overweight (x) 28 | . 11 5 2 10 1 28 Average Overweight (x) 1 | . 2 . . 1 . 1 Largest Inventory Capacity 25 | 8 15 15 15 15 25 25 Average Capacity 16 | 6 12 13 15 15 23 25 Most Carried 21 | 4 8 15 15 15 21 18 Average Carried 11 | 3 6 11 14 11 11 17 Final Capacity 25 | 8 15 15 15 15 25 25 Final Carried 18 | 4 6 15 15 14 18 17 Class Distribution -------------------- 48% | Mutant 20% | Scavenger-Mutant 13% | Scavenger-Skirmisher 6% | Tank 4% | Scavenger-Tank 4% | Scavenger-Gunner Dominant Class ---------------- Mutant | -10/Materials Mutant | -9/Materials Mutant | -8/Materials Scavenger-Skirmisher | -7/Factory Scavenger-Mutant | -6/Factory Scavenger-Mutant | -6/Extension Resources | -11 -10 -9 -8 -7 -6 -6 ----------- Run | Yrd Mat Mat Mat Fac Fac Ext Matter Collected 2524 | 277 274 309 182 960 477 45 Remotely . | . . . . . . . Salvage Created 4478 | 138 433 707 753 1761 647 39 Parts 225 | 7 23 40 37 74 38 6 Haulers Intercepted 4 | . . 2 . 1 1 . Recyclers Shooed 5 | . 1 . 3 1 . . Parts Field Recycled . | . . . . . . . Retrieved Matter . | . . . . . . . Parts Self-Destructed . | . . . . . . . Prevented . | . . . . . . . Kills | -11 -10 -9 -8 -7 -6 -6 ------- Run | Yrd Mat Mat Mat Fac Fac Ext Combat Hostiles Destroyed 69 | . 10 16 11 25 7 . Melee 11 | . . 1 . 3 7 . Guns 10 | . 1 4 2 3 . . Cannons 40 | . 9 9 9 13 . . AOE 2 | . . . . 2 . . Classes Destroyed 15 | 2 4 2 3 3 1 . Worker 8 | . . . 2 4 2 . Builder 8 | . 1 . . 3 3 1 Tunneler 3 | 2 1 . . . . . Hauler 4 | . . 2 . 1 1 . Recycler 9 | 1 1 1 1 4 1 . Mechanic 2 | . . . . 2 . . Operator 2 | . . . 1 1 . . Watcher 6 | . 1 . 1 3 . 1 Swarmer 18 | . 6 6 . 3 3 . Grunt 27 | . 4 7 5 10 1 . Brawler 1 | . . . . 1 . . Duelist 2 | . . . 2 . . . Sentry 14 | . . 3 4 6 1 . Hunter 1 | . . . . . 1 . Programmer 6 | . . . . 5 1 . Best Kill Streak 6 | 3 4 4 4 6 2 1 Combat Bots Only 4 | . 3 3 4 4 2 . Max Kills in Single Turn 3 | 1 2 1 1 3 1 1 Gunslinging . | . . . . . . . Exploded 2 | . . . . 2 . . Melee 1 | . . 1 . 1 1 . Uniques/NPCs Destroyed . | . . . . . . . Combat | -11 -10 -9 -8 -7 -6 -6 -------- Run | Yrd Mat Mat Mat Fac Fac Ext Hostile Shots Fired 954 | . 87 67 80 358 110 252 Missed 299 | . 23 15 15 118 32 96 Damage Taken 8135 | . 618 534 834 3454 985 1710 Core 1837 | . 170 66 133 614 79 775 Absorbed by Shields 206 | . . . 175 31 . . Redirected to Shielding 35 | . . . . 35 . . Ignored by Resistances 179 | . . . . . . 179 Regen/Repaired (Parts) 362 | . 239 . 123 . . . Core Remaining (%) 60 | 100 32 83 75 12 . . Volleys Fired 221 | 7 38 48 57 69 . 2 Largest 3 | 2 2 2 2 3 . 1 Hottest 240 | 70 136 136 136 240 . 44 Shots Fired 476 | 14 69 91 112 188 . 2 Gun 135 | 14 2 35 25 59 . . Cannon 341 | . 67 56 87 129 . 2 Launcher . | . . . . . . . Special . | . . . . . . . Kinetic 94 | 7 2 22 . 61 . 2 Thermal 382 | 7 67 69 112 127 . . Explosive . | . . . . . . . Electromagnetic . | . . . . . . . Robot Hit Streak 14 | 4 6 12 8 14 . 4 Robot Miss Streak 6 | 2 4 6 5 4 . . Penetration Max . | . . . . . . . Secondary Targets . | . . . . . . . Shots Hit Robots 332 | 7 29 53 66 132 36 9 Core Hits 153 | 5 15 20 24 68 16 5 Critical Kills 3 | . . 1 . 2 . . Critical Parts Destroyed 6 | . . 1 . 5 . . Critical Strikes 25 | 1 . 5 1 12 5 1 Burn 10 | 1 . 3 1 5 . . Meltdown 2 | . . 1 . 1 . . Smash 7 | . . 1 . 6 . . Sever 6 | . . . . . 5 1 Melee Attacks 94 | . . 5 3 23 54 9 Impact 28 | . . 5 . 23 . . Slashing 61 | . . . . . 52 9 Piercing . | . . . . . . . Sneak Attacks 24 | . . . 3 7 13 1 Combat Hostiles . | . . . . . . . Follow-up Attacks . | . . . . . . . Damage Inflicted 9462 | 79 638 1100 1425 4154 1715 351 Guns 1409 | 73 10 240 250 836 . . Cannons 4448 | . 617 762 1169 1857 . 43 Explosions 611 | . . . . 611 . . Melee 2967 | . . 94 . 850 1715 308 Ramming 27 | 6 11 4 6 . . . Kinetic 1058 | 25 10 114 . 866 . 43 Thermal 4799 | 48 617 888 1419 1827 . . Explosive 250 | . . . . 250 . . Electromagnetic 361 | . . . . 361 . . Impact 944 | . . 94 . 850 . . Slashing 2023 | . . . . . 1715 308 Piercing . | . . . . . . . Highest Corruption 26 | . . . . 26 . . Average Corruption 24 | . . . . 24 . . Corruption Purged 9 | . . . . 9 . . Corruption Blocked . | . . . . . . . Effects 136 | . . . . 136 . . Message Errors 29 | . . . . 29 . . Matter Fused 23 | . . . . 23 . . Heat Flow Errors 24 | . . . . 24 . . Energy Discharges 11 | . . . . 11 . . Parts Fused 3 | . . . . 3 . . Data Loss (minor) 17 | . . . . 17 . . Data Loss (major) 8 | . . . . 8 . . Misfires 6 | . . . . 6 . . Alerts 5 | . . . . 5 . . Misdirections 3 | . . . . 3 . . Weapon Failures 7 | . . . . 7 . . Overload Shots . | . . . . . . . Overflow Damage 718 | . 3 52 43 478 142 . Projectiles 109 | . 3 2 43 61 . . Explosions 1 | . . . . 1 . . Melee 608 | . . 50 . 416 142 . Knockbacks 6 | . . . . 6 . . Impact 5 | . . . . 5 . . Kinetic . | . . . . . . . Secondary 1 | . . . . 1 . . Self-Inflicted Damage 43 | . . . . 43 . . Shots 2 | . . . . 2 . . Rammed 3 | . . 3 . . . . Targets Rammed 9 | 2 3 3 1 . . . Kicked 6 | 2 3 . 1 . . . Crushed . | . . . . . . . Highest Temperature 685 | 70 685 471 321 439 . 7 Average Temperature 152 | 26 231 98 160 136 . 7 Received Heat Transfer 2604 | . 54 165 487 1244 210 444 Effects 46 | . 32 4 . 10 . . Shutdowns 6 | . 4 1 . 1 . . Energy Bleed 4 | . 1 . . 3 . . Interference 13 | . 5 3 . 5 . . Matter Decay 3 | . 2 . . 1 . . Short Circuit 1 | . 1 . . . . . Damage (minor) 3 | . 3 . . . . . Damage (major) 14 | . 14 . . . . . Damage (core) 2 | . 2 . . . . . Siege Activations . | . . . . . . . Robots Corrupted 4 | . . 1 . 3 . . Combat Hostiles 3 | . . 1 . 2 . . Parts Fried 10 | . . 2 . 8 . . Impact Corruptions 13 | . . 2 . 11 . . Robots Melted 3 | . . 1 . 2 . . Combat Hostiles 3 | . . 1 . 2 . . Parts Melted 17 | . 3 3 2 9 . . Heat Transferred 9849 | 222 1110 1961 2738 3818 . . Parts Sabotaged . | . . . . . . . Parts Stolen . | . . . . . . . Parts Stripped . | . . . . . . . Power Chain Reactions . | . . . . . . . Alert | -11 -10 -9 -8 -7 -6 -6 ------- Run | Yrd Mat Mat Mat Fac Fac Ext Peak Influence 377 | 15 218 368 377 307 196 180 Initial 155 | . 9 . 155 111 140 26 Average 134 | 6 52 150 275 178 70 58 Maximum Alert Level 1 | . 1 1 1 1 . . Low Security (%) 67 | 100 90 65 19 47 100 100 Level 1 32 | . 9 34 80 52 . . Level 2 . | . . . . . . . Level 3 . | . . . . . . . Level 4 . | . . . . . . . Level 5 . | . . . . . . . High Security . | . . . . . . . Max Security . | . . . . . . . Squads Dispatched 18 | . 1 2 1 10 4 . Investigation 5 | . 1 1 . 2 1 . Extermination 7 | . . . . 5 2 . Reinforcement 4 | . . 1 1 1 1 . Assault 1 | . . . . 1 . . Garrison 1 | . . . . 1 . . Intercept . | . . . . . . . Searches Triggered . | . . . . . . . Construction Impeded . | . . . . . . . Haulers Reinforced . | . . . . . . . Active Scanning Responses . | . . . . . . . Cargo Convoy Interrupts . | . . . . . . . Stealth | -11 -10 -9 -8 -7 -6 -6 --------- Run | Yrd Mat Mat Mat Fac Fac Ext Distress Signals 7 | . 2 1 . 3 . 1 Communications Jammed . | . . . . . . . Distress Signals . | . . . . . . . Times Spotted 131 | . 19 26 21 40 19 6 Peak Tracking Total 7 | . 4 4 6 7 4 5 Tactical Retreats 13 | . 1 2 1 3 6 . Traps | -11 -10 -9 -8 -7 -6 -6 ------- Run | Yrd Mat Mat Mat Fac Fac Ext Traps Triggered 7 | . 5 1 . 1 . . Indirectly . | . . . . . . . Trap Hack Attempts . | . . . . . . . Triggered . | . . . . . . . Disarmed 3 | . 3 . . . . . Reprogrammed . | . . . . . . . Reused . | . . . . . . . Traps Extracted . | . . . . . . . Installed . | . . . . . . . Triggered . | . . . . . . . Machines | -11 -10 -9 -8 -7 -6 -6 ---------- Run | Yrd Mat Mat Mat Fac Fac Ext Machines Disabled 13 | . 2 1 2 8 . . Max in Single Turn 4 | . 1 1 1 4 . . Garrison Access 1 | . . . . 1 . . Machines Repaired . | . . . . . . . Machines Dismantled . | . . . . . . . Machines Sabotaged . | . . . . . . . Overloaded Fab Kills . | . . . . . . . Hacking | -11 -10 -9 -8 -7 -6 -6 --------- Run | Yrd Mat Mat Mat Fac Fac Ext Machines Accessed 23 | . 6 3 4 8 1 1 Terminals 15 | . 5 2 2 5 . 1 Fabricators 2 | . . . . 1 1 . Repair Stations 3 | . 1 . 1 1 . . Recycling Units 2 | . . . 1 1 . . Scanalyzers 1 | . . 1 . . . . Garrison Access . | . . . . . . . Total Hacks 58 | . 20 6 10 17 3 2 Successful 38 | . 13 4 9 8 3 1 Failed 20 | . 7 2 1 9 . 1 Catastrophic 5 | . 1 2 . 2 . . Database Lockouts . | . . . . . . . Manual 2 | . . 1 1 . . . Terminals 29 | . 11 3 2 11 . 2 Fabricators 6 | . . . . 3 3 . Repair Stations 15 | . 9 . 4 2 . . Recycling Units 5 | . . . 4 1 . . Scanalyzers 3 | . . 3 . . . . Garrison Access . | . . . . . . . Terminal Hacks 13 | . 6 1 2 3 . 1 Record 1 | . . . . 1 . . Open DSF 1 | . . . . 1 . . Emergency Access Points 1 | . . . 1 . . . Alert Level 1 | . . . 1 . . . Unreport Threat 1 | . 1 . . . . . Locate Traps 1 | . . . . . . 1 Disarm Traps 1 | . 1 . . . . . Transport Status 1 | . 1 . . . . . Hauler Manifests 1 | . 1 . . . . . Zone Layout 4 | . 2 1 . 1 . . Fabricator Hacks 5 | . . . . 2 3 . Network Status 3 | . . . . 1 2 . Load Schematic 1 | . . . . 1 . . Build 1 | . . . . . 1 . Repair Station Hacks 13 | . 7 . 4 2 . . Scan Component 7 | . 4 . 2 1 . . Repair 6 | . 3 . 2 1 . . Recycling Unit Hacks 4 | . . . 3 1 . . Process 1 | . . . 1 . . . Report Inventory 2 | . . . 1 1 . . Retrieve Matter 1 | . . . 1 . . . Scanalyzer 3 | . . 3 . . . . Insert Component 2 | . . 2 . . . . Analyze 1 | . . 1 . . . . Garrison Access Hacks . | . . . . . . . Unauthorized Hacks . | . . . . . . . Terminals . | . . . . . . . Fabricators . | . . . . . . . Repair Stations . | . . . . . . . Recycling Units . | . . . . . . . Scanalyzers . | . . . . . . . Garrison Access . | . . . . . . . Data Cores Recovered . | . . . . . . . Used . | . . . . . . . Hacking Detections 20 | . 5 2 3 8 1 1 Full Trace Events 4 | . 1 . 1 1 1 . Feedback Events . | . . . . . . . Feedback Blocked . | . . . . . . . Robot Schematics Acquired . | . . . . . . . Robots Built 2 | . . . . . 2 . Authchips . | . . . . . . . Time 152 | . . . . . 152 . Total Robot Build Rating 10 | . . . . . 10 . Part Schematics Acquired 1 | . . 1 . . . . Parts Built . | . . . . . . . Authchips . | . . . . . . . Time . | . . . . . . . Total Part Build Rating . | . . . . . . . Parts Repaired 5 | . 3 . 2 . . . Time 230 | . 128 . 70 32 . . Parts Recycled . | . . . . . . . Recycled Matter 4 | . . . 4 . . . Retrieved Matter 4 | . . . 4 . . . Retrieved Components . | . . . . . . . Parts Scanalyzed 1 | . . 1 . . . . Part Schematics Acquired 1 | . . 1 . . . . Parts Damaged . | . . . . . . . Bothacking | -11 -10 -9 -8 -7 -6 -6 ------------ Run | Yrd Mat Mat Mat Fac Fac Ext Used RIF Installer . | . . . . . . . Robots Hacked 3 | . . . 1 . 2 . Non-combat 3 | . . . 1 . 2 . Combat . | . . . . . . . Robot Hacks Applied 5 | . . . 3 . 2 . parse_system 2 | . . . 1 . 1 . no_distress 2 | . . . 2 . . . find_dsf 1 | . . . . . 1 . Relay Couplers Released 1 | . . . . 1 . . Machine Destruction 1 | . . . . 1 . . Fabnet Peak Effective % . | . . . . . . . Robots Rewired . | . . . . . . . Allies Hacked 1 | . . . . . 1 . Hacks Repelled . | . . . . . . . Allies | -11 -10 -9 -8 -7 -6 -6 -------- Run | Yrd Mat Mat Mat Fac Fac Ext Total Allies 2 | . . . . . 2 . Largest Group 2 | . . . . . 2 . Highest-Rated Group 40 | . . . . . 40 . Highest-Rated Ally 20 | . . . . . 20 . Total Orders . | . . . . . . . Ally Attacks . | . . . . . . . Total Damage . | . . . . . . . Kills . | . . . . . . . Allies Corrupted 1 | . . . . . 1 . Allies Melted . | . . . . . . . Intel | -11 -10 -9 -8 -7 -6 -6 ------- Run | Yrd Mat Mat Mat Fac Fac Ext Robot Analysis Total . | . . . . . . . Derelict Logs Recovered . | . . . . . . . Drone Launches . | . . . . . . . Drone Recoveries . | . . . . . . . Exploration | -11 -10 -9 -8 -7 -6 -6 ------------- Run | Yrd Mat Mat Mat Fac Fac Ext Turns Passed 7929 | 101 1511 786 911 2762 1513 345 Spaces Moved 3084 | 56 491 337 329 1095 646 130 Core 134 | 3 94 6 . 29 . 2 Treads 1580 | . . 329 160 467 496 128 Legs 808 | 53 397 2 169 187 . . Wheels 412 | . . . . 412 . . Hover . | . . . . . . . Flight 150 | . . . . . 150 . Fastest Speed 31 | 50 120 160 126 93 31 160 Average Speed 190 | 116 238 162 144 198 172 252 Slowest Speed 1450 | 120 600 300 270 550 240 1450 Overloaded Moves . | . . . . . . . Propulsion Burnouts . | . . . . . . . Robots Hopped 1 | . . . . . 1 . Cave-ins Triggered . | . . . . . . . Exploration Rate (%) 32 | 4 73 39 37 34 12 25 Regions Visited 6 Branch Regions 1 Pre-discovered Areas . | . . . . . . . Known Exits Taken . | . . . . . . . Unknown Exits Taken 6 | 1 1 1 1 1 1 . Scrap Searched . | . . . . . . . Spaces Dug 13 | . . . . . 13 . Terrain Destroyed 27 | . . . . 14 13 . Melee 13 | . . . . . 13 . Projectile . | . . . . . . . AOE 14 | . . . . 14 . . Terrain Rammed . | . . . . . . . Walls Destroyed . | . . . . . . . Machines Disabled . | . . . . . . . Actions | -11 -10 -9 -8 -7 -6 -6 --------- Run | Yrd Mat Mat Mat Fac Fac Ext Total 4541 | 75 756 473 652 1476 966 143 Wait 798 | . 189 29 213 171 196 . Move 3077 | 56 490 336 328 1094 643 130 Hop 1 | . . . . . 1 . Pick Up 91 | 4 9 18 11 29 20 . Fast Attach 44 | 7 10 3 7 14 3 . Attach 44 | . 2 4 4 23 10 1 Detach 9 | . . 1 . 5 3 . Swap 92 | . 8 13 12 37 21 1 Drop 62 | . 7 13 16 11 15 . Fire 221 | 7 38 48 57 69 . 2 Melee 94 | . . 5 3 23 54 9 Ram . | . . . . . . . Kick 5 | 1 3 . 1 . . . Crush 3 | . . 3 . . . . Escape Stasis . | . . . . . . . Rewire . | . . . . . . . Trap . | . . . . . . . Miscellaneous . | . . . . . . . Route ------- -11/Scrapyard -10/Materials (discovered 2 exits: *Mat x2) -9/Materials (discovered 2 exits: *Mat / [*Sto]) -8/Materials -7/Factory -6/Factory (discovered 2 exits: [*Fac] / *Ext) -6/Extension History --------- Turn | Location | Event 4 | -11/Scrapyard | Discovered new exit (range 15) 102 | -11/Scrapyard | Entered Materials 323 | -10/Materials | Build established: Mutant 494 | -10/Materials | Repaired Adv. Beam Cannon 547 | -10/Materials | Repaired Adv. Beam Cannon 574 | -10/Materials | Repaired Lgt. Ion Engine 586 | -10/Materials | Discovered new exit (range 16) 815 | -10/Materials | Core integrity fell below 50% 1145 | -10/Materials | Discovered new exit (range 8) 1613 | -10/Materials | Entered another Materials area 1613 | -9/Materials | Evolved 2 slots: Propulsion x1, Utility x1 1616 | -9/Materials | Discovered new exit (range 16) 2261 | -9/Materials | Discovered new exit (range 15) 2399 | -9/Materials | Entered another Materials area 2399 | -8/Materials | Evolved 2 slots: Power x1, Utility x1 3226 | -8/Materials | Repaired Titanium Leg 3260 | -8/Materials | Repaired Cooling System 3306 | -8/Materials | Discovered new exit (range 4) 3310 | -8/Materials | Entered Factory 3310 | -7/Factory | Evolved 2 slots: Utility x1, Weapon x1 3343 | -7/Factory | Garrison activated, responded to threat 3499 | -7/Factory | System corruption reached 10% 3590 | -7/Factory | Lost 13 parts (3p4n4u2w) 4071 | -7/Factory | Core integrity fell below 50% 4087 | -7/Factory | Lost 4 parts (1p1n1u1w) 4292 | -7/Factory | Lost 3 parts (1n2w) 4809 | -7/Factory | Build established: Scavenger-Skirmisher 4874 | -7/Factory | Lost 3 parts (2n1u) 5313 | -7/Factory | Core integrity fell below 20% 6018 | -7/Factory | Discovered new exit (range 7) 6072 | -7/Factory | Entered another Factory area 6072 | -6/Factory | Evolved 2 slots: Propulsion x1, Utility x1 6275 | -6/Factory | Discovered new exit (range 10) 6617 | -6/Factory | Build established: Scavenger-Mutant 6653 | -6/Factory | Fabricated R-10 Processor (x2) 7535 | -6/Factory | Discovered new exit (range 16) 7585 | -6/Factory | Entered Extension 7874 | -6/Extension | Spotted B-75 Beast 7883 | -6/Extension | Spotted B-75 Beast 7918 | -6/Extension | Core integrity fell below 50% 7926 | -6/Extension | Core integrity fell below 20% 7930 | -6/Extension | Destroyed by Y-54 Guardian with Gatling Laser Last Messages --------------- U-05 Engineer builds a Wall. B-75 Beast Imp. Medium Treads severed. Plasma Cannon destroyed. Hacking Suite destroyed. Med. Treads destroyed. U-05 Engineer builds a Wall. B-75 Beast destroyed. Chainsword destroyed. Imp. Datajack destroyed. Acquired 5 matter. T-07 Excavator destroyed. Med. Treads destroyed. U-05 Engineer builds a Wall. Acquired 5 matter. Assault Cannon destroyed. Knocked back. U-05 Engineer builds a Wall. Focal Shield destroyed. U-05 Engineer knocked back. U-05 Engineer builds a Wall. Map ----- +----------------------------------------------------+ | ?????????????????????????????????????????????????? | | ?????????????????????????????????????????????????? | | ?????????????????????????????????????????????????? | | ?????????????????????????????????????????????????? | | ?????????????????????????????????????????????????? | | ?????????????????????????????????????????????????? | | ?????????????????????????????????????????????????? | | ?????????????????????????????????????????????????? | | ?????????????????????????????????????????????????? | | ???????????????????????????#?????????????????????? | | ?????????????????????????? #?????????????????????? | | ?????????????????????????? #?????????????????????? | | ?????????????????????????? #??##?##??????????????? | | ???????????????????????### ### ## ##?????????????? | | ???????????????????????#"" "" ""????????????? | | ???????????????????????# " " "????????????? | | ???????????????????????# ???????????? | | ??????????????##??##???# ???????????? | | ########################R ??????????? | | ??????????? | | ! %| ??????????? | | = % % YBB ?????????? | | = % *kBB* ?????????? | | !%|Y=Rkk ????????? | | ########################%%% #????????? | | ??????????????????????##[@% #????????? | | ???????????????????????# #????????? | | ???????????????????????# #????????? | | ???????????????????????# u ?????????? | | ???????????????????????######T#"""######?????????? | | ???????????????????????? ????##??????????????????? | | ????????????????????????#????????????????????????? | | | | | | | | | | | | | | | | | | | | | | | | | | | | | | | | | | | | | +----------------------------------------------------+ Best States ------------- Heat Dissipation 78 Energy Generation 27 Energy Capacity 480 Matter Stores 300 Matter Capacity 300 Sight Range 16 Robot Scan Range 15 Terrain Scan Range 16 Terrain Scan Density 210 ECM Strength 2 Additional Mass Support 9 Base Temperature (-) 100 Armor Coverage 150 Resistance: KI 20 Power Shielding 33 Evasion (%) 63 Targeting Accuracy 8 Melee Accuracy 8 Recoil Reduction 4 Offensive Hacking 10 Authchip Count 5 Item Schematics ----------------- Adv. Beam Cannon | -9/Materials | Scanalyzed Robot Schematics ------------------ None Fabricated ------------ R-10 Processor | x2 | -6/Factory | Preloaded Alien Tech Used ----------------- None Achievements -------------- I Spy My Command Is Your Wish Omniscient Cartographer Part-time Excavator Safety First Serviceable Loadout Challenges ------------ None Game ------ Seed ThermicBackupPower Manual? 0 Play Time 01:38:10 Cumulative 7.5 hours Start 2024.11.25 @ 18:17:56 End 2024.11.25 @ 20:13:30 Sessions 3 Manual Loads 0 Difficulty Rogue Special Mode None Game No. 7 Rogue 7 Adventurer 0 Explorer 0 Win Type - Total 0 Types 0/0/0/0/0/0/0/0/0 Lore% 3 Gallery% 13 Achievement% 14 Wizard Run 0 Options --------- Layout 0 ASCII 0 Keyboard 0 Movement Mouse Keybinds 0 Fullscreen 2 Font 18/SmallcapsGlow Map View 38x25 Zoom Use 86% Tactical HUD 0 Map Filters NONE Filters NONE Steam 1 RUN: 199b6d21-9447-4e4d-9e1c-1f68a47c71d8